Cogmind - Beta 14 @@@ ROGUE MODE // 2025.01.16 @ 00:09:47 Player: Isakabibble Result: Destroyed by as-18167 with Assembled Blade Performance ------------- Evolutions (0) 0 Regions Visited (4) 800 Robots Destroyed (7) 35 Value Destroyed (233) 233 Prototype IDs (1) 20 Alien Tech Used (0) 0 Bonus (0) 0 TOTAL SCORE: 1088 Bonus ------- None Cogmind --------- Core Integrity 0/250 Matter 250/300 Energy 250/250 System Corruption 1% Temperature Cool (12) Movement Walking (120) Location -9/Mines Parts ------- > --- POWER (1) -------- Ion Engine > --- PROPULSION (2) --- Aluminum Leg Aluminum Leg (fused) > --- UTILITY (2) ------ Targeting Computer Sensor Drone Bay (19/20) > --- WEAPON (2) ------- (None) > --- INVENTORY (5) ---- Light Ion Engine Reinforced Deuterium Engine Light Armor Plating Peak State ------------ > --- POWER ------------ Ion Engine > --- PROPULSION ------- Aluminum Leg Aluminum Leg > --- UTILITY ---------- Targeting Computer Sensor Drone Bay > --- WEAPON ----------- Light Assault Rifle Autogun > --- INVENTORY -------- Light Ion Engine Reinforced Deuterium Engine Light Armor Plating [Rating: 15] Favorites ----------- Power Ion Engine Engine Ion Engine Propulsion Aluminum Leg Treads Light Treads Leg Aluminum Leg Utility Targeting Computer Device Sensor Drone Bay Storage Small Storage Unit Processor Targeting Computer Protection Light Armor Plating Weapon Light Assault Rifle Ballistic Gun Light Assault Rifle Build | -11 -10 -10 -10 -9 ------- Run | Yrd Mat Min Exi Min Slots Evolved . | . . . . . Power . | . . . . . Propulsion . | . . . . . Utility . | . . . . . Weapon . | . . . . . Parts Attached 14 | 5 4 3 1 1 Power 3 | 1 1 . 1 . Engine 3 | 1 1 . 1 . Core . | . . . . . Reactor . | . . . . . Propulsion 4 | 2 2 . . . Treads 2 | 2 . . . . Leg 2 | . 2 . . . Wheel . | . . . . . Hover . | . . . . . Flight . | . . . . . Utility 5 | 1 1 3 . . Device 1 | . . 1 . . Storage 1 | 1 . . . . Processor 1 | . 1 . . . Hackware . | . . . . . Protection 2 | . . 2 . . Artifact . | . . . . . Weapon 2 | 1 . . . 1 Energy Gun . | . . . . . Energy Cannon . | . . . . . Ballistic Gun 2 | 1 . . . 1 Ballistic Cannon . | . . . . . Launcher . | . . . . . Special Weapon . | . . . . . Impact Weapon . | . . . . . Slashing Weapon . | . . . . . Piercing Weapon . | . . . . . Special Melee Weapon . | . . . . . Unidentified Prototypes 1 | . . 1 . . Parts Lost 3 | . 2 . . 1 Power 1 | . 1 . . . Propulsion 1 | . 1 . . . Utility . | . . . . . Weapon 1 | . . . . 1 Highest Loss Streak 2 | . 2 . . 1 To Critical Strikes . | . . . . . Average Slot Usage (%) 84 | . 82 85 84 85 Engine 13 | . 13 14 13 14 Treads 8 | . 21 . . . Leg 19 | . 5 28 28 28 Device 5 | . . 5 14 14 Storage 6 | . 14 4 . . Processor 13 | . 13 14 14 14 Protection 1 | . . 4 . . Ballistic Gun 14 | . 14 14 14 14 Peak Build Rating 15 | 5 6 13 13 15 Average Rating 7 | 4 5 8 12 13 On Entrance 7 | . 5 6 13 13 Naked Turns . | . . . . . Heaviest Build 20 | 11 11 18 20 20 Greatest Support 40 | 40 40 20 20 20 Greatest Overweight (x) . | . . . . . Average Overweight (x) . | . . . . . Largest Inventory Capacity 8 | 8 8 8 5 5 Average Capacity 6 | 7 8 5 5 5 Most Carried 5 | 5 4 3 4 4 Average Carried 1 | 1 . 1 2 3 Final Capacity 8 | 8 8 5 5 5 Final Carried 3 | 1 1 2 3 3 Class Distribution -------------------- 100% | Mutant Dominant Class ---------------- Mutant | -10/Materials Mutant | -10/Mines Mutant | -10/Exiles Mutant | -9/Mines Resources | -11 -10 -10 -10 -9 ----------- Run | Yrd Mat Min Exi Min Matter Collected 377 | 250 42 42 . 43 Remotely . | . . . . . Salvage Created 301 | . 281 . . 20 Parts 11 | . 11 . . . Haulers Intercepted . | . . . . . Recyclers Shooed . | . . . . . Parts Field Recycled . | . . . . . Retrieved Matter . | . . . . . Parts Self-Destructed . | . . . . . Prevented . | . . . . . Kills | -11 -10 -10 -10 -9 ------- Run | Yrd Mat Min Exi Min Combat Hostiles Destroyed 7 | . 6 . . 1 Guns 7 | . 6 . . 1 Classes Destroyed 3 | . 2 . . 1 Watcher 1 | . 1 . . . Grunt 6 | . 6 . . . Assembled 1 | . . . . 1 Best Kill Streak 2 | . 2 . . 1 Combat Bots Only 2 | . 2 . . 1 Max Kills in Single Turn 1 | . 1 . . 1 Gunslinging . | . . . . . Exploded . | . . . . . Melee . | . . . . . Uniques/NPCs Destroyed . | . . . . . Combat | -11 -10 -10 -10 -9 -------- Run | Yrd Mat Min Exi Min Hostile Shots Fired 84 | . 47 . . 37 Missed 21 | . 12 . . 9 Damage Taken 858 | . 433 . . 425 Core 267 | . 55 . . 212 Absorbed by Shields . | . . . . . Core Remaining (%) 100 | 100 . . . . Volleys Fired 57 | . 44 . . 13 Largest 2 | . 1 . . 2 Hottest 43 | . 20 . . 43 Shots Fired 60 | . 44 . . 16 Gun 60 | . 44 . . 16 Cannon . | . . . . . Launcher . | . . . . . Special . | . . . . . Kinetic 60 | . 44 . . 16 Thermal . | . . . . . Explosive . | . . . . . Electromagnetic . | . . . . . Robot Hit Streak 10 | . 10 . . 4 Robot Miss Streak 4 | . 4 . . 2 Penetration Max . | . . . . . Secondary Targets . | . . . . . Shots Hit Robots 35 | . 30 . . 5 Core Hits 21 | . 17 . . 4 Critical Kills . | . . . . . Critical Parts Destroyed . | . . . . . Critical Strikes . | . . . . . Melee Attacks . | . . . . . Impact . | . . . . . Slashing . | . . . . . Piercing . | . . . . . Sneak Attacks . | . . . . . Combat Hostiles . | . . . . . Follow-up Attacks . | . . . . . Damage Inflicted 370 | . 249 . . 121 Guns 360 | . 246 . . 114 Cannons . | . . . . . Explosions . | . . . . . Melee . | . . . . . Ramming 10 | . 3 . . 7 Kinetic 360 | . 246 . . 114 Thermal . | . . . . . Explosive . | . . . . . Electromagnetic . | . . . . . Impact . | . . . . . Slashing . | . . . . . Piercing . | . . . . . Highest Corruption 1 | . 1 1 1 1 Average Corruption 1 | . 1 1 1 1 Corruption Purged . | . . . . . Corruption Blocked . | . . . . . Effects 9 | . 1 4 3 1 Message Errors 2 | . 1 . 1 . Matter Fused 2 | . . 2 . . Heat Flow Errors 1 | . . . 1 . Parts Fused 1 | . . 1 . . Data Loss (minor) 2 | . . 1 1 . Data Loss (major) 1 | . . . . 1 Overload Shots . | . . . . . Overflow Damage . | . . . . . Projectiles . | . . . . . Explosions . | . . . . . Melee . | . . . . . Knockbacks . | . . . . . Impact . | . . . . . Kinetic . | . . . . . Secondary . | . . . . . Self-Inflicted Damage . | . . . . . Shots . | . . . . . Rammed 1 | . 1 . . . Targets Rammed 4 | . 1 . . 3 Kicked 3 | . . . . 3 Crushed . | . . . . . Highest Temperature 129 | . 15 . 129 32 Average Temperature 17 | . 6 . 73 9 Received Heat Transfer 464 | . 264 . . 200 Siege Activations . | . . . . . Robots Corrupted . | . . . . . Combat Hostiles . | . . . . . Parts Fried . | . . . . . Impact Corruptions . | . . . . . Robots Melted . | . . . . . Combat Hostiles . | . . . . . Parts Melted . | . . . . . Heat Transferred . | . . . . . Parts Sabotaged . | . . . . . Parts Stolen . | . . . . . Parts Stripped . | . . . . . Power Chain Reactions . | . . . . . Alert | -11 -10 -10 -10 -9 ------- Run | Yrd Mat Min Exi Min Peak Influence 113 | . 113 27 . 15 Initial 27 | . . 27 . . Average 25 | . 54 20 . 4 Maximum Alert Level . | . . . . . Low Security (%) 100 | 100 100 100 . 100 Level 1 . | . . . . . Level 2 . | . . . . . Level 3 . | . . . . . Level 4 . | . . . . . Level 5 . | . . . . . High Security . | . . . . . Max Security . | . . . . . Squads Dispatched 1 | . 1 . . . Investigation . | . . . . . Extermination . | . . . . . Reinforcement 1 | . 1 . . . Assault . | . . . . . Garrison . | . . . . . Intercept . | . . . . . Searches Triggered . | . . . . . Construction Impeded . | . . . . . Haulers Reinforced . | . . . . . Active Scanning Responses . | . . . . . Cargo Convoy Interrupts . | . . . . . Stealth | -11 -10 -10 -10 -9 --------- Run | Yrd Mat Min Exi Min Distress Signals . | . . . . . Communications Jammed . | . . . . . Distress Signals . | . . . . . Times Spotted 29 | . 11 . . 18 Peak Tracking Total 15 | . 3 . . 15 Tactical Retreats 1 | . . . . 1 Traps | -11 -10 -10 -10 -9 ------- Run | Yrd Mat Min Exi Min Traps Triggered . | . . . . . Indirectly . | . . . . . Trap Hack Attempts . | . . . . . Triggered . | . . . . . Disarmed . | . . . . . Reprogrammed . | . . . . . Reused . | . . . . . Traps Extracted . | . . . . . Installed . | . . . . . Triggered . | . . . . . Machines | -11 -10 -10 -10 -9 ---------- Run | Yrd Mat Min Exi Min Machines Disabled . | . . . . . Max in Single Turn . | . . . . . Machines Repaired . | . . . . . Machines Dismantled . | . . . . . Machines Sabotaged . | . . . . . Overloaded Fab Kills . | . . . . . Hacking | -11 -10 -10 -10 -9 --------- Run | Yrd Mat Min Exi Min Machines Accessed 5 | . 3 1 1 . Terminals 2 | . 2 . . . Fabricators . | . . . . . Repair Stations . | . . . . . Recycling Units 1 | . 1 . . . Scanalyzers . | . . . . . Garrison Access . | . . . . . Total Hacks 31 | . 7 1 23 . Successful 29 | . 5 1 23 . Failed 2 | . 2 . . . Catastrophic 1 | . 1 . . . Database Lockouts . | . . . . . Manual . | . . . . . Terminals 4 | . 4 . . . Fabricators . | . . . . . Repair Stations . | . . . . . Recycling Units 3 | . 3 . . . Scanalyzers . | . . . . . Garrison Access . | . . . . . Terminal Hacks 28 | . 4 1 23 . Record 25 | . 2 . 23 . Open Door 1 | . . 1 . . Alert Level 1 | . 1 . . . Recall Investigation 1 | . 1 . . . Fabricator Hacks . | . . . . . Repair Station Hacks . | . . . . . Recycling Unit Hacks 1 | . 1 . . . Retrieve Components 1 | . 1 . . . Scanalyzer . | . . . . . Garrison Access Hacks . | . . . . . Unauthorized Hacks . | . . . . . Terminals . | . . . . . Fabricators . | . . . . . Repair Stations . | . . . . . Recycling Units . | . . . . . Scanalyzers . | . . . . . Garrison Access . | . . . . . Data Cores Recovered . | . . . . . Used . | . . . . . Hacking Detections 2 | . 2 . . . Full Trace Events 1 | . 1 . . . Feedback Events 1 | . 1 . . . Corruption 1 | . 1 . . . Feedback Blocked . | . . . . . Robot Schematics Acquired . | . . . . . Robots Built . | . . . . . Authchips . | . . . . . Time . | . . . . . Total Robot Build Rating . | . . . . . Part Schematics Acquired . | . . . . . Parts Built . | . . . . . Authchips . | . . . . . Time . | . . . . . Total Part Build Rating . | . . . . . Parts Repaired . | . . . . . Time . | . . . . . Parts Recycled . | . . . . . Recycled Matter . | . . . . . Retrieved Matter . | . . . . . Retrieved Components 8 | . 8 . . . Parts Scanalyzed . | . . . . . Part Schematics Acquired . | . . . . . Parts Damaged . | . . . . . Bothacking | -11 -10 -10 -10 -9 ------------ Run | Yrd Mat Min Exi Min Used RIF Installer . | . . . . . Robots Hacked . | . . . . . Non-combat . | . . . . . Combat . | . . . . . Robot Hacks Applied . | . . . . . Relay Couplers Released . | . . . . . Fabnet Peak Effective % . | . . . . . Robots Rewired . | . . . . . Allies Hacked . | . . . . . Hacks Repelled . | . . . . . Allies | -11 -10 -10 -10 -9 -------- Run | Yrd Mat Min Exi Min Total Allies . | . . . . . Largest Group . | . . . . . Highest-Rated Group . | . . . . . Highest-Rated Ally . | . . . . . Total Orders . | . . . . . Ally Attacks . | . . . . . Total Damage . | . . . . . Kills . | . . . . . Allies Corrupted . | . . . . . Allies Melted . | . . . . . Intel | -11 -10 -10 -10 -9 ------- Run | Yrd Mat Min Exi Min Robot Analysis Total . | . . . . . Derelict Logs Recovered 1 | . . 1 . . Drone Launches 20 | . . . . 20 Drone Recoveries 19 | . . . . 19 Exploration | -11 -10 -10 -10 -9 ------------- Run | Yrd Mat Min Exi Min Turns Passed 2082 | 479 607 538 376 82 Spaces Moved 1354 | 211 348 442 312 41 Core 24 | 24 . . . . Treads 435 | 187 248 . . . Legs 895 | . 100 442 312 41 Wheels . | . . . . . Hover . | . . . . . Flight . | . . . . . Fastest Speed 50 | 50 120 120 120 120 Average Speed 131 | 147 148 120 120 120 Slowest Speed 160 | 160 160 120 120 120 Overloaded Moves . | . . . . . Propulsion Burnouts . | . . . . . Robots Hopped . | . . . . . Cave-ins Triggered . | . . . . . Exploration Rate (%) 42 | 17 55 73 56 10 Regions Visited 4 Branch Regions 3 Pre-discovered Areas 1 | . . . 1 . Known Exits Taken . | . . . . . Unknown Exits Taken 4 | 1 1 1 1 . Scrap Searched 3 | . . 2 . 1 Spaces Dug . | . . . . . Terrain Destroyed . | . . . . . Melee . | . . . . . Projectile . | . . . . . AOE . | . . . . . Terrain Rammed . | . . . . . Walls Destroyed . | . . . . . Machines Disabled . | . . . . . Actions | -11 -10 -10 -10 -9 --------- Run | Yrd Mat Min Exi Min Total 1607 | 379 403 452 314 59 Wait 159 | 158 1 . . . Move 1350 | 210 347 441 311 41 Hop . | . . . . . Pick Up 15 | 6 4 3 1 1 Fast Attach . | . . . . . Attach 14 | 5 4 3 1 1 Detach 5 | . 1 3 1 . Swap . | . . . . . Drop 3 | . 1 2 . . Fire 57 | . 44 . . 13 Melee . | . . . . . Ram . | . . . . . Kick 3 | . . . . 3 Crush 1 | . 1 . . . Escape Stasis . | . . . . . Rewire . | . . . . . Trap . | . . . . . Miscellaneous . | . . . . . Route ------- -11/Scrapyard -10/Materials -10/Mines (discovered 3 exits: [*Mat x2] / *Exi) -10/Exiles -9/Mines History --------- Turn | Location | Event 16 | -11/Scrapyard | Discovered new exit (range 15) 480 | -11/Scrapyard | Entered Materials 481 | -10/Materials | Build established: Mutant 1065 | -10/Materials | Discovered new exit (range 13) 1087 | -10/Materials | Entered Mines 1229 | -10/Mines | Discovered new exit (range 7) 1235 | -10/Mines | Discovered new exit (range 12) 1391 | -10/Mines | Found the Drone Emporium 1406 | -10/Mines | Found Prototype Device 1413 | -10/Mines | Identified Sensor Drone Bay 1456 | -10/Mines | Deemed a non-threat by the Exiles lab entrance 1457 | -10/Mines | Discovered new exit (range 5) 1625 | -10/Mines | Entered Exiles 1675 | -10/Exiles | Met 8R-AWN 1700 | -10/Exiles | Met EX-HEX 1770 | -10/Exiles | Met EX-DEC 1821 | -10/Exiles | Learned location of Zion (-7) 1873 | -10/Exiles | Discovered new exit (range 14) 2001 | -10/Exiles | Entered Mines 2002 | -9/Mines | Assembled infested the area 2004 | -9/Mines | Met a Derelict bent on vengeance 2080 | -9/Mines | Core integrity fell below 50% 2082 | -9/Mines | Core integrity fell below 20% 2083 | -9/Mines | Destroyed by as-18167 with Assembled Blade Last Messages --------------- System corrupted: Substantial component data lost. Sensor Drone destroyed. Sensor Drone retrieved by Sensor Drone Bay. T-07 Excavator is excavating. Sensor Drone retrieved by Sensor Drone Bay. T-07 Excavator is excavating. Sensor Drone retrieved by Sensor Drone Bay. T-07 Excavator is excavating. Sensor Drone retrieved by Sensor Drone Bay. T-07 Excavator is excavating. Lgt. Assault Rifle destroyed. T-07 Excavator is excavating. as-54569 destroyed. T-07 Excavator is excavating. Sensor Drone retrieved by Sensor Drone Bay. T-07 Excavator is excavating. Kicked as-18167. T-07 Excavator is excavating. Autogun severed. Kicked as-18167. Map ----- +----------------------------------------------------+ | ?????????????????????????????????????????????????? | | ?????????????????????????????????????????????????? | | ?????????????????????????????????????????????????? | | ?????????????????????????????????????????????????? | | ?????????????????????????????????????????????????? | | ?????????????????????????????????????????????????? | | ?????????????????????????????????????????????????? | | ?????????????????????????????????????????????????? | | ?????????????????????????????????????????????????? | | ?????????????????????????????????????????????????? | | ????????????????????????????????????????? ???????? | | ????????????????????????????????????????# ???????? | | ???????????????????????????????????????? ????????? | | ?????????????????????????????????????### ??????? ? | | ?????????????????????????????????????# ?????? ? | | ?????????????????????????????????????# ????? ?? | | ?????????????????????????????????????# ???? ???? | | ?????????????????????????????????????# #??? ????? | | ?????????????????????????????????????# #?? ?????? | | ?????????????????????????????????????# ## ??????? | | ?????????????????????????????????????# "???????? | | ?????????????????????????#########???# #????????? | | ????????????????????????## ##### #????????? | | ????????????????????????# !! aaaa% #????????? | | ????????????????????????# a a ! ##### ######???? | | ????????????????????????#@a ! a! #??# ##??? | | ????????????????????????# !! #??# #??? | | ????????????????????????# #??## #??? | | ????????????????????????# ######???## ##?? | | ????????????????????????## #?????????### #?? | | ????????????????????????# #??????????## #?? | | ????????????????????????# ##??????????## ##?? | | ????????????????????????# t#???????????# ##??? | | ???????????????????????? #???????????# ###???? | | ???????????????????????######???????????# ##?????? | | ????????????????????????????????????????##???????? | | ?????????????????????????????????????????????????? | | ?????????????????????????????????????????????????? | | ?????????????????????????????????????????????????? | | ?????????????????????????????????????????????????? | | ?????????????????????????????????????????????????? | | ?????????????????????????????????????????????????? | | ?????????????????????????????????????????????????? | | ?????????????????????????????????????????????????? | | | | | | | | | | | | | +----------------------------------------------------+ Best States ------------- Heat Dissipation 25 Energy Generation 10 Energy Capacity 250 Matter Stores 300 Matter Capacity 300 Sight Range 16 Terrain Scan Density 10 Armor Coverage 150 Evasion (%) 55 Targeting Accuracy 5 Recoil Reduction 2 Item Schematics ----------------- None Robot Schematics ------------------ None Fabricated ------------ Nothing Alien Tech Used ----------------- None Achievements -------------- Librarian Release The Drones! Risk Taker Tourist Challenges ------------ None Game ------ Seed JunkHelicalMultirail Manual? 0 Play Time 00:19:46 Cumulative 2.2 hours Start 2025.01.15 @ 23:51:21 End 2025.01.16 @ 00:09:47 Sessions 1 Manual Loads 0 Difficulty Rogue Special Mode None Game No. 6 Rogue 6 Adventurer 0 Explorer 0 Win Type - Total 0 Types 0/0/0/0/0/0/0/0/0 Lore% 2 Gallery% 4 Achievement% 8 Wizard Run 0 Options --------- Layout 0 ASCII 0 Keyboard 1 Movement Arrows Keybinds 0 Fullscreen 1 Font 18/SmallcapsGlow Map View 76x50 Zoom Use 0% Tactical HUD 0 Map Filters NONE Filters NONE Steam 1 RUN: fade7ffa-67e2-4ac2-a496-41629808a533